Workbook

Sheet BSheet
A1: Balance Sheet
A3: Instant | B3: 2015-06-30
A4: Year | B4: 2015
A5: Current Assets
A8: Add Row Above
A9: Total | B9: =SUM(B7:B8) -> 0
A10: Non Current Assets
A12: Add Row Above
A13: Total | B13: =SUM(B11:B12) -> 0
A14: Current Liabilities
A16: Add Row Above
A17: Total | B17: =SUM(B15:B16) -> 0
A18: Non Current Liabilities
A20: Add Row Above
A21: Total | B21: =SUM(B19:B20) -> 0
A22: Equity
A24: Add Row Above
A25: Total | B25: =SUM(B23:B24) -> 0
A26: Net Assets | B26: =B9+B13-B17-B21 -> 0

Sheet ProfitLoss
A1: Profit & Loss
A3: From | B3: 2014-07-01
A4: To | B4: 2015-06-30
A5: Year | B5: 2015
A6: Income
A8: Add Row Above
A9: Total | B9: =SUM(B7:B8) -> 0
A10: Other Income
A12: Add Row Above
A13: Total | B13: =SUM(B11:B12) -> 0
A14: Non Operating Income
A16: Add Row Above
A17: Total | B17: =SUM(B15:B16) -> 0
A18: Cost of Sales
A20: Add Row Above
A21: Total | B21: =SUM(B19:B20) -> 0
A22: Operating Expenses
A24: Add Row Above
A25: Total | B25: =SUM(B23:B24) -> 0
A26: Non Operating Expenses
A28: Add Row Above
A29: Total | B29: =SUM(B27:B28) -> 0
A30: Gross Profit | B30: =B9-B21 -> 0
A31: Operating Profit | B31: =B30+B13-B25 -> 0
A32: Net Profit (Accounting) | B32: =B9+B13+B17-B21-B25-B29 -> 0

Sheet PartnerBeneDistn
A1: Profit Distribution | B1: XML | C1: Actual | D1: Required
B2: Output | C2: Expected | D2: Adjustment
A3: Instant | B3: 2015-06-30 | C3: =B3 -> 2015-06-30 | D3: =B3 -> 2015-06-30
A4: Partners
A5: Andrew Noble | B5: 0
A6: Linda Noble | B6: 0
A8: Total | B8: =SUM(B5:B6) -> 0 | C8: =SUM(C5:C6) -> 0 | D8: =B8-C8 -> 0
A9: Andrew Noble
A10: Opening Balance | B10: 0
A11: Capital Introduced | B11: 0
A12: Share of Profit | B12: =B5 -> 0
A13: Drawing | B13: 0
A14: Closing Balance | B14: =SUM(B9:B13) -> 0 | D14: =B14-C14 -> 0
A15: Linda Noble
A16: Opening Balance | B16: 0
A17: Capital Introduced | B17: 0
A18: Share of Profit | B18: =B6 -> 0
A19: Drawing | B19: 0
A20: Closing Balance | B20: =SUM(B15:B19) -> 0 | D20: =B20-C20 -> 0

Sheet NetActivity
A1: General Ledger
A3: From | B3: 2014-07-01
A4: To | B4: 2015-06-30
A5: Year | B5: 2015
A6: Current Assets
A7: Some current asset | B7: 2
A8: Add Row Above
A9: Total | B9: =SUM(B7:B8) -> 2
A10: Non Current Assets
A11: Some non current asset | B11: 1
A12: Add Row Above
A13: Total | B13: =SUM(B11:B12) -> 1
A14: Current Liabilities
A15: Some current liability | B15: -1
A16: Add Row Above
A17: Total | B17: =SUM(B15:B16) -> -1
A18: Non Current Liabilities
A19: Some non current liability | B19: -1
A20: Add Row Above
A21: Total | B21: =SUM(B19:B20) -> -1
A22: Equity
A23: Some equity | B23: -1
A24: Add Row Above
A25: Total | B25: =SUM(B23:B24) -> -1
A26: Income
A27: Some trading income | B27: -6
A28: Add Row Above
A29: Total | B29: =SUM(B27:B28) -> -6
A30: Other Income
A31: Some other income | B31: -1
A32: Add Row Above
A33: Total | B33: =SUM(B31:B32) -> -1
A34: Non Operating Income
A35: Some non operating income | B35: 2
A36: Add Row Above
A37: Total | B37: =SUM(B35:B36) -> 2
A38: Cost of Sales
A39: Some cost of sales | B39: 2
A40: Add Row Above
A41: Total | B41: =SUM(B39:B40) -> 2
A42: Operating Expenses
A43: Some indirect operating expense | B43: 1
A44: Add Row Above
A45: Total | B45: =SUM(B43:B44) -> 1
A46: Non Operating Expenses
A47: Some non operating expense | B47: 1
A48: Add Row Above
A49: Total | B49: =SUM(B47:B48) -> 1
A50: Unclassified
A51: Some unclassified | B51: 1
A52: Add Row Above
A53: Total | B53: =SUM(B51:B52) -> 1
A55: Total Test | B55: =B9+B13+B17+B21+B25+B29+B33+B41+B45+B49+B37+B53 -> 0

Sheet Livestock (hidden)
A1: LiveStock
A3: From | C3: 2013-07-01
A4: To | C4: 2014-06-30
A5: Year | B5: No | C5: 2014
A6: Cattle
A7: Opening Stock | B7: 1306 | C7: 13974
A8: Purchases | B8: 5 | C8: 1750
A9: Natural Increase | B9: 425
A10: Sales | B10: 361 | C10: 16543
A11: Rations | B11: 10 | C11: 107
A12: Deaths - Sheep | B12: 152 | C12: 0
A13: Closing Stock | B13: 1213 | C13: 10990
A14: Net Profit | C14: =SUM(C10:C13)-SUM(C7:C9) -> 11916
A15: Sheep
A16: Opening Stock | B16: 1306 | C16: 13974
A17: Purchases | B17: 5 | C17: 1750
A18: Natural Increase | B18: 425
A19: Sales | B19: 361 | C19: 16543
A20: Rations | B20: 10 | C20: 107
A21: Deaths - Sheep | B21: 152 | C21: 0
A22: Closing Stock | B22: 1306 | C22: 10990
A23: Net Profit | C23: =SUM(C19:C22)-SUM(C16:C18) -> 11916

Sheet Quantities
A1: Generic Quantities
A3: Date | B3: 2015-06-30
A4: Quantities
A5: Name | B5: Tag | C5: Change Method | D5: Currency | E5: Field Location | F5: Unit | G5: Unit Value | H5: Quantity | I5: Classified
A6: some generic quantity | D6: AUD | F6: 1 | G6: 1 | H6: 1

Sheet BankReconcilation
A1: Bank Reconcilation
A3: Instant | B3: 2015-06-30
A4: Bank Account Number | B4: 56778855
A5: Bank Account Name | B5: Andrew Noble
A6: Bank Account BSB
A7: Bank Balance Per General Ledger | B7: 100
A8: Computed Bank Statement Balance | B8: =B7+B9-B10 -> -1144.45
A9: Outstanding Payments | B9: =D16 -> 255.55
A10: Outstanding Deposits | B10: =C21 -> 1500
A11: Transaction ID | B11: Description | C11: Deposit | D11: Payment | E11: Date
A12: Outstanding Payments
A13: Chq005200 | B13: Payment to Supplier X | C13: 0 | D13: 105 | E13: 2015-06-30
A14: Tfer201 | B14: Telstra | C14: 0 | D14: 150.55
A15: Add Row Above
A16: Total | C16: =SUM(C13:C15) -> 0 | D16: =SUM(D13:D15) -> 255.55
A17: Outstanding Deposits
A18: CustomerX | B18: Deposit | C18: 500 | D18: 0 | E18: 2015-06-28
A19: Batch 504 | B19: Deposit | C19: 1000 | D19: 0 | E19: 2015-05-20
A20: Add Row Above
A21: Total | C21: =SUM(C18:C20) -> 1500 | D21: =SUM(D18:D20) -> 0

Sheet BankStatement
A1: Bank Statement
A3: Instant | B3: 2015-06-30
A4: Bank Account Number | B4: 56778855
A5: Bank Account Name | B5: Andrew Noble
A6: Bank Account BSB
A7: Bank Balance Per Bank Statement | B7: 12354

Sheet LivestockCalculator
A1: Livestock Account
A3: From | B3: 2014-07-01
A4: To | B4: 2015-06-30
A5: Year | B5: 2015
A6: Livestock Account Description | B6: Cattle
A7: Include value for natural increase $ | B7: 20
B8: Number | C8: $
A9: Gross Sales | B9: 6 | C9: 7663
A10: Killed for rations or exchanged for goods | B10: 10 | C10: =B10*C19 -> 383.25 | D10: (Average Cost * # taken for rations)
A11: Stock on hand at end of year | B11: 24 | C11: =C19*B11 -> 919.8 | D11: (Closing stock on hand = Closing #*Average Cost)
A12: Losses by death | B12: 0
A13: Sub-total | B13: =SUM(B9:B11)-B12 -> 40 | C13: =SUM(C9:C11) -> 8966.05
A14: Less:
A15: Stock on hand at beginning of year | B15: 25 | C15: 1233
A16: Purchases - at cost | B16: 0 | C16: 0
A17: Natural increase | B17: 15 | C17: 0 | D17: =B17*B7 -> 300 | E17: (Natural Increase Value)
A18: Sub-total | B18: =SUM(B15:B17) -> 40 | C18: =SUM(C15:C16) -> 1233 | D18: =C18+D17 -> 1533 | E18: (Natural Increase + Purchases + Opening Stock)
A19: Averate cost | C19: =D18/B18 -> 38.325 | D19: (Average cost = (Opening Stock + Purchases + Natural Increase (Natural Inc # * $/Natural Increase)/(#Opening +#Purchase+#Natural Increase)
A21: Revenue | C21: =C9+C10 -> 8046.25
A22: Livestock COGS | C22: =C18-C11 -> 313.2
A23: Gross Profit on Livestock Trading | C23: =C21-C22 -> 7733.05
